Cogmind - Beta 14 @@@ ROGUE MODE // 2024.08.10 @ 22:15:20 Player: osman sinnoks Result: Self-destructed Performance ------------- Evolutions (3) 1500 Regions Visited (9) 1800 Robots Destroyed (26) 130 Value Destroyed (595) 595 Prototype IDs (2) 40 Alien Tech Used (0) 0 Bonus (847) 847 TOTAL SCORE: 4912 Bonus ------- Follower Combat Kills 179 Entered DSFs 500 Aligned with FarCom 300 Friendly Fire -132 Cogmind --------- Core Integrity 175/700 Matter 142/300 Energy 140/140 System Corruption 0% Temperature Cool (0) Movement Core (200) Ox3 Location -7/DSF Parts ------- > --- POWER (2) -------- Light Deuterium Engine > --- PROPULSION (3) --- (None) > --- UTILITY (5) ------ Hardened Light Armor Plating > --- WEAPON (3) ------- (None) > --- INVENTORY (5) ---- Light Ion Engine Peak State ------------ > --- POWER ------------ Ion Engine Light Nuclear Core > --- PROPULSION ------- Aluminum Leg Carbon-fiber Leg Carbon-fiber Leg > --- UTILITY ---------- Coolant Injector Advanced Weight Redist. System Improved Signal Interpreter Targeting Computer > --- WEAPON ----------- Gauss Rifle Grenade Launcher Longsword +1 > --- INVENTORY -------- Light Ion Engine Light Deuterium Engine Aluminum Leg Grenade Launcher Grenade Launcher [Rating: 35] Favorites ----------- Power Ion Engine Engine Ion Engine Power Core Light Nuclear Core Propulsion Aluminum Leg Leg Aluminum Leg Utility Targeting Computer Device Seismic Detector Processor Targeting Computer Protection Light Armor Plating Weapon Grenade Launcher Energy Gun Beamcaster Ballistic Gun Assault Rifle Launcher Grenade Launcher Slashing Weapon Longsword +1 Build | -11 -10 -10 -10 -9 -8 -7 -7 -7 -7 ------- Run | Yrd Mat Min Exi Min Mat Fac Was Fac DSF Slots Evolved 6 | . . . . . 4 2 . . . Power 1 | . . . . . 1 . . . . Propulsion 1 | . . . . . . 1 . . . Utility 3 | . . . . . 2 1 . . . Weapon 1 | . . . . . 1 . . . . Parts Attached 32 | 5 6 4 2 . 3 5 3 . 4 Power 4 | 1 1 . . . 1 . . . 1 Engine 3 | 1 1 . . . . . . . 1 Core 1 | . . . . . 1 . . . . Reactor . | . . . . . . . . . . Propulsion 8 | 2 1 2 . . 1 1 . . 1 Treads . | . . . . . . . . . . Leg 8 | 2 1 2 . . 1 1 . . 1 Wheel . | . . . . . . . . . . Hover . | . . . . . . . . . . Flight . | . . . . . . . . . . Utility 8 | . 2 . 2 . . 3 . . 1 Device 4 | . 1 . 1 . . 2 . . . Storage . | . . . . . . . . . . Processor 2 | . 1 . . . . 1 . . . Hackware . | . . . . . . . . . . Protection 2 | . . . 1 . . . . . 1 Artifact . | . . . . . . . . . . Weapon 12 | 2 2 2 . . 1 1 3 . 1 Energy Gun 2 | 1 . 1 . . . . . . . Energy Cannon . | . . . . . . . . . . Ballistic Gun 3 | 1 1 . . . . 1 . . . Ballistic Cannon . | . . . . . . . . . . Launcher 6 | . 1 1 . . . . 3 . 1 Special Weapon . | . . . . . . . . . . Impact Weapon . | . . . . . . . . . . Slashing Weapon 1 | . . . . . 1 . . . . Piercing Weapon . | . . . . . . . . . . Special Melee Weapon . | . . . . . . . . . . Unidentified Prototypes 2 | . . . 1 . 1 . . . . Parts Lost 13 | . . 1 . . 1 . 9 . 2 Power 1 | . . . . . . . 1 . . Propulsion 3 | . . . . . . . 2 . 1 Utility 4 | . . . . . 1 . 3 . . Weapon 5 | . . 1 . . . . 3 . 1 Highest Loss Streak 9 | . . 1 . . 1 . 9 . 2 To Critical Strikes 1 | . . . . . . . 1 . . Average Slot Usage (%) 89 | . 93 99 100 100 79 85 58 . 15 Engine 11 | . 14 14 14 14 9 7 4 . 3 Core 2 | . . . . . 9 7 4 . . Leg 24 | . 28 28 28 28 18 23 14 . . Device 7 | . 12 14 7 . . 11 9 . . Processor 11 | . 10 14 14 14 9 12 10 . . Protection 4 | . . . 6 14 7 . . . 7 Energy Gun 7 | . 8 2 14 14 9 . . . . Ballistic Gun 4 | . 13 10 . . . 6 4 . . Launcher 10 | . 5 14 14 14 9 7 4 . 3 Slashing Weapon 2 | . . . . . 9 7 4 . . Peak Build Rating 35 | 5 7 13 25 14 26 35 35 . 10 Average Rating 15 | 3 6 8 13 14 24 32 21 . 3 On Entrance 11 | . 5 7 13 14 14 25 35 . . Naked Turns 54 | . . . . . . . 42 4 8 Heaviest Build 24 | 9 11 14 16 16 24 21 21 . 5 Greatest Support 49 | 20 20 25 25 25 30 49 49 3 3 Greatest Overweight (x) 1 | . . . . . . . . . 1 Average Overweight (x) . | . . . . . . . . . . Largest Inventory Capacity 5 | 5 5 5 5 5 5 5 5 5 5 Average Capacity 5 | 5 5 5 5 5 5 5 5 5 5 Most Carried 5 | 2 5 5 5 5 5 5 5 3 4 Average Carried 4 | . 2 4 4 5 4 4 4 3 2 Final Capacity 5 | 5 5 5 5 5 5 5 5 5 5 Final Carried 5 | 2 5 5 5 5 5 5 3 3 1 Class Distribution -------------------- 57% | Mutant 42% | Scavenger-Mutant Dominant Class ---------------- Mutant | -10/Materials Mutant | -10/Mines Scavenger-Mutant | -10/Exiles Mutant | -9/Mines Scavenger-Mutant | -8/Materials Scavenger-Mutant | -7/Factory Scavenger-Mutant | -7/Waste Scavenger-Mutant | -7/Factory Scavenger-Mutant | -7/DSF Resources | -11 -10 -10 -10 -9 -8 -7 -7 -7 -7 ----------- Run | Yrd Mat Min Exi Min Mat Fac Was Fac DSF Matter Collected 682 | 260 77 149 . 20 110 66 . . . Remotely . | . . . . . . . . . . Salvage Created 626 | 26 185 30 . . 295 90 . . . Parts 49 | 5 19 4 . . 12 9 . . . Haulers Intercepted . | . . . . . . . . . . Recyclers Shooed 1 | . . . . . 1 . . . . Parts Field Recycled . | . . . . . . . . . . Retrieved Matter . | . . . . . . . . . . Parts Self-Destructed . | . . . . . . . . . . Prevented . | . . . . . . . . . . Kills | -11 -10 -10 -10 -9 -8 -7 -7 -7 -7 ------- Run | Yrd Mat Min Exi Min Mat Fac Was Fac DSF Combat Hostiles Destroyed 12 | . 4 4 . . 3 1 . . . Melee 3 | . . 1 . . 1 1 . . . Guns 2 | . . . . . 2 . . . . AOE 7 | . 4 3 . . . . . . . Classes Destroyed 10 | 1 5 1 . . 2 1 . . . Worker 4 | . 2 . . . 2 . . . . Builder 1 | . 1 . . . . . . . . Tunneler 1 | 1 . . . . . . . . . Recycler 2 | . 1 . . . 1 . . . . Watcher 5 | . 2 . . . 2 1 . . . Swarmer 3 | . . 3 . . . . . . . Grunt 7 | . 4 1 . . 2 . . . . Sentry 1 | . . . . . 1 . . . . Specialist 1 | . . . . . . 1 . . . Hunter 1 | . . . . . 1 . . . . Best Kill Streak 8 | 1 8 3 . . 3 1 . . . Combat Bots Only 4 | . 4 3 . . 1 1 . . . Max Kills in Single Turn 2 | 1 2 2 . . 2 1 . . . Gunslinging . | . . . . . . . . . . Exploded 2 | . 1 2 . . . . . . . Melee 1 | . . 1 . . 1 1 . . . Uniques/NPCs Destroyed . | . . . . . . . . . . Combat | -11 -10 -10 -10 -9 -8 -7 -7 -7 -7 -------- Run | Yrd Mat Min Exi Min Mat Fac Was Fac DSF Hostile Shots Fired 92 | . 14 13 . . 29 2 7 . 27 Missed 26 | . 1 3 . . 8 . . . 14 Damage Taken 1538 | . 157 108 . . 373 44 479 . 377 Core 676 | . 13 . . . 138 . 365 . 160 Absorbed by Shields . | . . . . . . . . . . Core Remaining (%) 89 | 100 . . . 94 74 . . . . Volleys Fired 58 | 4 8 10 . . 22 4 7 . 3 Largest 2 | 2 2 2 . . 2 1 2 . 1 Hottest 105 | 70 50 50 . . 105 28 58 . 39 Shots Fired 83 | 8 16 12 . . 30 4 10 . 3 Gun 56 | 8 8 10 . . 22 4 4 . . Cannon . | . . . . . . . . . . Launcher 27 | . 8 2 . . 8 . 6 . 3 Special . | . . . . . . . . . . Kinetic 30 | 4 8 10 . . . 4 4 . . Thermal 26 | 4 . . . . 22 . . . . Explosive 27 | . 8 2 . . 8 . 6 . 3 Electromagnetic . | . . . . . . . . . . Robot Hit Streak 11 | 3 11 5 . . 5 3 4 . 4 Robot Miss Streak 4 | 2 2 3 . . 4 1 1 . . Penetration Max . | . . . . . . . . . . Secondary Targets . | . . . . . . . . . . Shots Hit Robots 60 | 4 12 8 . . 22 4 8 . 2 Core Hits 50 | 1 19 5 . 1 14 3 5 . 2 Critical Kills . | . . . . . . . . . . Critical Parts Destroyed . | . . . . . . . . . . Critical Strikes 3 | . . . . . 3 . . . . Burn 1 | . . . . . 1 . . . . Sever 2 | . . . . . 2 . . . . Melee Attacks 11 | . . . . . 9 1 1 . . Impact . | . . . . . . . . . . Slashing 11 | . . . . . 9 1 1 . . Piercing . | . . . . . . . . . . Sneak Attacks 1 | . . . . . 1 . . . . Combat Hostiles . | . . . . . . . . . . Follow-up Attacks . | . . . . . . . . . . Damage Inflicted 2975 | 53 824 270 . 13 931 101 670 . 113 Guns 527 | 53 61 86 . . 208 55 64 . . Cannons . | . . . . . . . . . . Explosions 1925 | . 763 168 . . 293 . 588 . 113 Melee 494 | . . . . . 430 46 18 . . Ramming 29 | . . 16 . 13 . . . . . Kinetic 293 | 27 61 86 . . . 55 64 . . Thermal 234 | 26 . . . . 208 . . . . Explosive 1925 | . 763 168 . . 293 . 588 . 113 Electromagnetic . | . . . . . . . . . . Impact . | . . . . . . . . . . Slashing 494 | . . . . . 430 46 18 . . Piercing . | . . . . . . . . . . Highest Corruption . | . . . . . . . . . . Average Corruption . | . . . . . . . . . . Corruption Purged . | . . . . . . . . . . Corruption Blocked . | . . . . . . . . . . Overload Shots . | . . . . . . . . . . Overflow Damage 26 | . . . . . 26 . . . . Projectiles . | . . . . . . . . . . Explosions . | . . . . . . . . . . Melee 26 | . . . . . 26 . . . . Knockbacks 1 | . . . . 1 . . . . . Impact 1 | . . . . 1 . . . . . Kinetic . | . . . . . . . . . . Secondary . | . . . . . . . . . . Self-Inflicted Damage 151 | . 5 . . . 33 . 113 . . Shots 7 | . 1 . . . 3 . 3 . . Rammed . | . . . . . . . . . . Targets Rammed 10 | . . 7 . 3 . . . . . Kicked 10 | . . 7 . 3 . . . . . Crushed . | . . . . . . . . . . Highest Temperature 192 | 18 64 . . . 192 . . . . Average Temperature 68 | 10 41 . . . 79 . . . . Received Heat Transfer 264 | . 108 48 . . 108 . . . . Siege Activations . | . . . . . . . . . . Robots Corrupted . | . . . . . . . . . . Combat Hostiles . | . . . . . . . . . . Parts Fried . | . . . . . . . . . . Impact Corruptions . | . . . . . . . . . . Robots Melted . | . . . . . . . . . . Combat Hostiles . | . . . . . . . . . . Parts Melted 4 | . . . . . 4 . . . . Heat Transferred 518 | 74 . . . . 444 . . . . Parts Sabotaged . | . . . . . . . . . . Parts Stolen . | . . . . . . . . . . Parts Stripped . | . . . . . . . . . . Power Chain Reactions . | . . . . . . . . . . Alert | -11 -10 -10 -10 -9 -8 -7 -7 -7 -7 ------- Run | Yrd Mat Min Exi Min Mat Fac Was Fac DSF Peak Influence 344 | 5 195 187 . . 344 223 78 10 30 Initial 156 | . 3 75 . . . 156 78 10 7 Average 94 | 1 38 147 . . 155 175 47 10 10 Maximum Alert Level 1 | . . . . . 1 1 . . . Low Security (%) 93 | 100 100 100 . 100 70 93 100 100 100 Level 1 6 | . . . . . 29 6 . . . Level 2 . | . . . . . . . . . . Level 3 . | . . . . . . . . . . Level 4 . | . . . . . . . . . . Level 5 . | . . . . . . . . . . High Security . | . . . . . . . . . . Max Security . | . . . . . . . . . . Squads Dispatched 4 | . 1 . . . 1 1 . . 1 Investigation 1 | . 1 . . . . . . . . Extermination . | . . . . . . . . . . Reinforcement 3 | . . . . . 1 1 . . 1 Assault . | . . . . . . . . . . Garrison . | . . . . . . . . . . Intercept . | . . . . . . . . . . Searches Triggered . | . . . . . . . . . . Construction Impeded . | . . . . . . . . . . Haulers Reinforced . | . . . . . . . . . . Active Scanning Responses . | . . . . . . . . . . Cargo Convoy Interrupts . | . . . . . . . . . . Stealth | -11 -10 -10 -10 -9 -8 -7 -7 -7 -7 --------- Run | Yrd Mat Min Exi Min Mat Fac Was Fac DSF Distress Signals 4 | . 1 1 . . 2 . . . . Communications Jammed . | . . . . . . . . . . Distress Signals . | . . . . . . . . . . Times Spotted 29 | . 4 3 . . 11 3 6 . 2 Peak Tracking Total 6 | . 5 2 . . 3 2 6 . 2 Tactical Retreats . | . . . . . . . . . . Traps | -11 -10 -10 -10 -9 -8 -7 -7 -7 -7 ------- Run | Yrd Mat Min Exi Min Mat Fac Was Fac DSF Traps Triggered 2 | . 1 . . . . 1 . . . Indirectly . | . . . . . . . . . . Trap Hack Attempts . | . . . . . . . . . . Triggered . | . . . . . . . . . . Disarmed . | . . . . . . . . . . Reprogrammed 3 | . 3 . . . . . . . . Reused 1 | . 1 . . . . . . . . Traps Extracted . | . . . . . . . . . . Installed . | . . . . . . . . . . Triggered 1 | . 1 . . . . . . . . Machines | -11 -10 -10 -10 -9 -8 -7 -7 -7 -7 ---------- Run | Yrd Mat Min Exi Min Mat Fac Was Fac DSF Machines Disabled 2 | . . 1 . . 1 . . . . Max in Single Turn 1 | . . 1 . . 1 . . . . Machines Repaired . | . . . . . . . . . . Machines Dismantled . | . . . . . . . . . . Machines Sabotaged . | . . . . . . . . . . Overloaded Fab Kills . | . . . . . . . . . . Hacking | -11 -10 -10 -10 -9 -8 -7 -7 -7 -7 --------- Run | Yrd Mat Min Exi Min Mat Fac Was Fac DSF Machines Accessed 5 | . 2 . 1 . . 1 . 1 . Terminals 3 | . 2 . . . . . . 1 . Fabricators . | . . . . . . . . . . Repair Stations . | . . . . . . . . . . Recycling Units . | . . . . . . . . . . Scanalyzers . | . . . . . . . . . . Garrison Access 1 | . . . . . . 1 . . . Total Hacks 14 | . 7 . 4 . . 1 . 2 . Successful 11 | . 5 . 4 . . 1 . 1 . Failed 3 | . 2 . . . . . . 1 . Catastrophic . | . . . . . . . . . . Database Lockouts . | . . . . . . . . . . Manual 1 | . . . 1 . . . . . . Terminals 9 | . 7 . . . . . . 2 . Fabricators . | . . . . . . . . . . Repair Stations . | . . . . . . . . . . Recycling Units . | . . . . . . . . . . Scanalyzers . | . . . . . . . . . . Garrison Access 1 | . . . . . . 1 . . . Terminal Hacks 10 | . 5 . 4 . . . . 1 . Record 4 | . . . 4 . . . . . . Open DSF 1 | . . . . . . . . 1 . Alert Level 1 | . 1 . . . . . . . . Locate Traps 1 | . 1 . . . . . . . . Reprogram Traps 1 | . 1 . . . . . . . . Surveillance Status 1 | . 1 . . . . . . . . Hauler Manifests 1 | . 1 . . . . . . . . Fabricator Hacks . | . . . . . . . . . . Repair Station Hacks . | . . . . . . . . . . Recycling Unit Hacks . | . . . . . . . . . . Scanalyzer . | . . . . . . . . . . Garrison Access Hacks 1 | . . . . . . 1 . . . Unlock Access 1 | . . . . . . 1 . . . Unauthorized Hacks . | . . . . . . . . . . Terminals . | . . . . . . . . . . Fabricators . | . . . . . . . . . . Repair Stations . | . . . . . . . . . . Recycling Units . | . . . . . . . . . . Scanalyzers . | . . . . . . . . . . Garrison Access . | . . . . . . . . . . Data Cores Recovered . | . . . . . . . . . . Used . | . . . . . . . . . . Hacking Detections 4 | . 2 . . . . 1 . 1 . Full Trace Events . | . . . . . . . . . . Feedback Events . | . . . . . . . . . . Feedback Blocked . | . . . . . . . . . . Robot Schematics Acquired . | . . . . . . . . . . Robots Built . | . . . . . . . . . . Authchips . | . . . . . . . . . . Time . | . . . . . . . . . . Total Robot Build Rating . | . . . . . . . . . . Part Schematics Acquired . | . . . . . . . . . . Parts Built . | . . . . . . . . . . Authchips . | . . . . . . . . . . Time . | . . . . . . . . . . Total Part Build Rating . | . . . . . . . . . . Parts Repaired . | . . . . . . . . . . Time . | . . . . . . . . . . Parts Recycled . | . . . . . . . . . . Recycled Matter . | . . . . . . . . . . Retrieved Matter . | . . . . . . . . . . Retrieved Components . | . . . . . . . . . . Parts Scanalyzed . | . . . . . . . . . . Part Schematics Acquired . | . . . . . . . . . . Parts Damaged . | . . . . . . . . . . Bothacking | -11 -10 -10 -10 -9 -8 -7 -7 -7 -7 ------------ Run | Yrd Mat Min Exi Min Mat Fac Was Fac DSF Used RIF Installer . | . . . . . . . . . . Robots Hacked . | . . . . . . . . . . Non-combat . | . . . . . . . . . . Combat . | . . . . . . . . . . Robot Hacks Applied . | . . . . . . . . . . Relay Couplers Released . | . . . . . . . . . . Fabnet Peak Effective % . | . . . . . . . . . . Robots Rewired . | . . . . . . . . . . Allies Hacked . | . . . . . . . . . . Hacks Repelled . | . . . . . . . . . . Allies | -11 -10 -10 -10 -9 -8 -7 -7 -7 -7 -------- Run | Yrd Mat Min Exi Min Mat Fac Was Fac DSF Total Allies 3 | . . . . 3 . . . . . Largest Group 3 | . . . . 3 3 1 1 . . Highest-Rated Group 40 | . . . . 40 40 16 16 . . Highest-Rated Ally 16 | . . . . 16 16 16 16 . . Total Orders . | . . . . . . . . . . Ally Attacks 64 | . . . . . 54 2 8 . . Total Damage 587 | . . . . . 499 . 88 . . Kills 5 | . . . . . 5 . . . . Allies Corrupted . | . . . . . . . . . . Allies Melted . | . . . . . . . . . . Intel | -11 -10 -10 -10 -9 -8 -7 -7 -7 -7 ------- Run | Yrd Mat Min Exi Min Mat Fac Was Fac DSF Robot Analysis Total . | . . . . . . . . . . Derelict Logs Recovered . | . . . . . . . . . . Drone Launches . | . . . . . . . . . . Drone Recoveries . | . . . . . . . . . . Exploration | -11 -10 -10 -10 -9 -8 -7 -7 -7 -7 ------------- Run | Yrd Mat Min Exi Min Mat Fac Was Fac DSF Turns Passed 1822 | 86 214 361 259 255 333 156 131 4 23 Spaces Moved 1374 | 58 146 269 213 210 199 114 140 8 17 Core 121 | 10 . . . . . . 86 8 17 Treads . | . . . . . . . . . . Legs 1253 | 48 146 269 213 210 199 114 54 . . Wheels . | . . . . . . . . . . Hover . | . . . . . . . . . . Flight . | . . . . . . . . . . Fastest Speed 50 | 50 120 120 120 120 120 120 50 50 50 Average Speed 113 | 107 120 120 120 120 120 120 77 50 58 Slowest Speed 120 | 120 120 120 120 120 120 120 120 50 100 Overloaded Moves . | . . . . . . . . . . Propulsion Burnouts . | . . . . . . . . . . Robots Hopped . | . . . . . . . . . . Cave-ins Triggered . | . . . . . . . . . . Exploration Rate (%) 39 | 5 28 62 60 54 36 4 75 . 32 Regions Visited 9 Branch Regions 3 Pre-discovered Areas 2 | . . . 1 1 . . . . . Known Exits Taken 1 | . . . . . . . . 1 . Unknown Exits Taken 6 | 1 1 1 1 1 1 . . . . Scrap Searched 2 | . . 1 . 1 . . . . . Spaces Dug . | . . . . . . . . . . Terrain Destroyed 162 | . 29 19 . . 51 . 21 . 42 Melee . | . . . . . . . . . . Projectile . | . . . . . . . . . . AOE 162 | . 29 19 . . 51 . 21 . 42 Terrain Rammed . | . . . . . . . . . . Walls Destroyed . | . . . . . . . . . . Machines Disabled . | . . . . . . . . . . Actions | -11 -10 -10 -10 -9 -8 -7 -7 -7 -7 --------- Run | Yrd Mat Min Exi Min Mat Fac Was Fac DSF Total 1533 | 73 169 296 217 212 253 129 151 7 26 Wait 19 | . . . . . 19 . . . . Move 1366 | 57 145 268 212 209 198 114 139 7 17 Hop . | . . . . . . . . . . Pick Up 29 | 7 9 3 1 . 2 4 1 . 2 Fast Attach 2 | . . . 1 . . 1 . . . Attach 26 | 5 6 1 1 . 2 4 3 . 4 Detach . | . . . . . . . . . . Swap 4 | . . 3 . . 1 . . . . Drop 8 | . 1 4 2 . . 1 . . . Fire 58 | 4 8 10 . . 22 4 7 . 3 Melee 11 | . . . . . 9 1 1 . . Ram . | . . . . . . . . . . Kick 10 | . . 7 . 3 . . . . . Crush . | . . . . . . . . . . Escape Stasis . | . . . . . . . . . . Rewire . | . . . . . . . . . . Trap . | . . . . . . . . . . Miscellaneous . | . . . . . . . . . . Route ------- -11/Scrapyard -10/Materials -10/Mines (discovered 2 exits: [*Mat] / *Exi) -10/Exiles -9/Mines -8/Materials -7/Factory (discovered 2 exits: [*Sto] / Gar) -7/Waste -7/Factory -7/DSF History --------- Turn | Location | Event 3 | -11/Scrapyard | Discovered new exit (range 16) 87 | -11/Scrapyard | Entered Materials 282 | -10/Materials | Discovered new exit (range 15) 301 | -10/Materials | Entered Mines 315 | -10/Mines | Build established: Mutant 328 | -10/Mines | Discovered new exit (range 14) 332 | -10/Mines | Met a Derelict bent on vengeance 457 | -10/Mines | Found a damaged Exp. Sensor Array with a note attached 656 | -10/Mines | Deemed a non-threat by the Exiles lab entrance 657 | -10/Mines | Discovered new exit (range 5) 662 | -10/Mines | Entered Exiles 691 | -10/Exiles | Met 8R-AWN 713 | -10/Exiles | Met EX-HEX 745 | -10/Exiles | Met EX-BIN 762 | -10/Exiles | Aligned with FarCom system 763 | -10/Exiles | Given EX-Vault access code 793 | -10/Exiles | Opened EX-Vault 799 | -10/Exiles | Found Prototype Device 799 | -10/Exiles | Identified Chronowheel 799 | -10/Exiles | Activated Chronowheel 803 | -10/Exiles | Found Prototype Slashing Weapon 827 | -10/Exiles | Warned to stay clear of 0b10 Research branches 847 | -10/Exiles | Exiles lab attacked by MAIN.C 870 | -10/Exiles | Learned location of Zion (-6) 903 | -10/Exiles | Discovered new exit (range 14) 921 | -10/Exiles | Left Exiles lab with Longsword +1 921 | -10/Exiles | Entered Mines 941 | -9/Mines | Assisted by bots powering up and referring to "LRC-V3" 1165 | -9/Mines | Learned location of Storage (-7) 1165 | -9/Mines | Discovered new exit (range 8) 1176 | -9/Mines | Entered Materials 1176 | -8/Materials | Accompanied by 3 allies 1176 | -8/Materials | Evolved 4 slots: Power x1, Utility x2, Weapon x1 1176 | -8/Materials | Identified Longsword +1 1477 | -8/Materials | Build established: Scavenger-Mutant 1506 | -8/Materials | Discovered new exit (range 3) 1509 | -8/Materials | Entered Factory 1509 | -7/Factory | Accompanied by 1 ally 1509 | -7/Factory | Evolved 2 slots: Propulsion x1, Utility x1 1655 | -7/Factory | Identified exit to Garrison 1664 | -7/Factory | Discovered new exit (range 14) 1665 | -7/Factory | Sucked down chute 1665 | -7/Factory | Entered Waste 1687 | -7/Waste | Spotted C-40 Crusher 1688 | -7/Waste | Spotted C-40 Crusher 1700 | -7/Waste | 1 allies followed down the chute 1729 | -7/Waste | Spotted C-40 Crusher 1733 | -7/Waste | Spotted C-40 Crusher 1742 | -7/Waste | Crushed by Compactor (1 part destroyed, 2 dropped) 1743 | -7/Waste | Spotted C-40 Crusher 1745 | -7/Waste | Crushed by Compactor (1 part destroyed, 1 dropped) 1748 | -7/Waste | Crushed by Compactor (1 part destroyed, 2 dropped) 1751 | -7/Waste | Crushed by Compactor (1 part destroyed, 1 dropped) 1754 | -7/Waste | Crushed by Compactor (1 part destroyed) 1770 | -7/Waste | Spotted C-40 Crusher 1776 | -7/Waste | Core integrity fell below 50% 1785 | -7/Waste | Lost 9 parts (1p2n3u3w) 1790 | -7/Waste | Discovered new exit (range 13) 1796 | -7/Waste | Entered Factory 1800 | -7/Factory | Identified exit to DSF 1800 | -7/Factory | Entered DSF 1823 | -7/DSF | Self-destructed Last Messages --------------- Connecting with DSF Access... Current location identified: Factory >>Open(DSF) DSF access unlocked. EXIT=UNLOCKED: DSF LOCATION=DSF AMBIENT_HEAT=-10 GOAL=ESCAPE Receiving FarCom transmissions... X-57 Shotgunner springs to life. Acquired Hrd. Light Armor Plating. Slug penetrates Wall. Acquired Hvy. Missile Launcher. Penetrated by Slug. Aluminum Leg destroyed. Knocked back. ALERT: Hostile activity reported, dispatching reinforcements to area. Penetrated by Slug. Hvy. Missile Launcher destroyed. Map ----- +----------------------------------------------------+ | | | | | | | ???????????????????????????????? | | ???????????????????????????????? | | ???????????????????????????????? | | ???????????????????????????????? | | ???????????????????????????????? | | ???????????????????????????????? | | ???????????????????????????????? | | ???????????????????????????????? | | ???????????????????????????????? | | ???????????????????????????????? | | ???????????????????????????????? | | ???????????????????????????????? | | ???????????????????????????????? | | ???????????????????????????????? | | ???????????????????????????????? | | ???????????????????????????????? | | ???????????????????????????????? | | ???????????????????????????????? | | ???????????????????????????????? | | ???????????????????????????????? | | ??????######??###??????????????? | | ????###]] %#? #??!#??????????? | | ????# %@% #" #!!!## ???????? | | ????###!! ???????? | | ????# ;!! H???????? | | ????###! ???????? | | ??????# !!! !! ????????? | | ?????? !!! ??????????? | | ?????? ### ??????????? | | ?????? x ##???# #??????????? | | ?????? ?????????????????? | | ?????? ##????????????????? | | ?????? #?????????????????? | | ?????? #! ! #?????????????????? | | ??????##! !!#?????????????????? | | ???????## ###?????????????????? | | ??????### ##???#??????????????? | | ????###"" ##!!#!!!##?????????? | | ???#""""" ??????? | | ???#"##"" ??????? | | ??????#"""""##!!#!!!# !!??????? | | ??????#"""""#?###???#??????????? | | ??????####"##??????????????????? | | ??????????"#???????????????????? | | ??????????"#???????????????????? | | ???????????????????????????????? | | ???????????????????????????????? | +----------------------------------------------------+ Best States ------------- Heat Dissipation 34 Coolant Potential 65 Energy Generation 19 Energy Capacity 310 Matter Stores 300 Matter Capacity 300 Sight Range 16 Terrain Scan Density 10 Additional Mass Support 9 Armor Coverage 150 Evasion (%) 55 Targeting Accuracy 5 Item Schematics ----------------- None Robot Schematics ------------------ None Fabricated ------------ Nothing Alien Tech Used ----------------- None Achievements -------------- None Challenges ------------ None Game ------ Seed FrostZioniteArachnoskeleton Manual? 0 Play Time 00:23:12 Cumulative 16.7 hours Start 2024.08.10 @ 21:52:06 End 2024.08.10 @ 22:15:20 Sessions 1 Manual Loads 0 Difficulty Rogue Special Mode None Game No. 36 Rogue 36 Adventurer 0 Explorer 0 Win Type - Total 0 Types 0/0/0/0/0/0/0/0/0 Lore% 13 Gallery% 23 Achievement% 19 Wizard Run 0 Options --------- Layout 1 ASCII 0 Keyboard 0 Movement Mouse Keybinds 0 Fullscreen 1 Font 16/SmallcapsGlow Map View 50x40 Zoom Use 0% Tactical HUD 0 Map Filters NONE Filters NONE Steam SD RUN: ba57e577-3f05-4add-b9cc-70a3c1a42dec